fUSD/lending_fUSD_20250716
["ID","MTS","AMOUNT","RATE_DAILY","PERIOD"]
[372530887,1752673855013,-460.0,0.00021917,2]
[372530888,1752673855023,-151.0,0.00021917,2]
[372530889,1752673855032,-151.0,0.00021917,2]
[372530890,1752673855042,-1111.33,0.00021917,2]
[372530891,1752673855051,-151.0,0.00021917,2]
[372530892,1752673855060,-460.0,0.00021917,2]
[372530893,1752673855070,-154.988277,0.00021917,2]
[372530894,1752673855080,-460.0,0.00021917,2]
[372530895,1752673855089,-460.0,0.00021917,2]
[372530896,1752673855099,-460.0,0.00021917,2]
[372530897,1752673855108,-2572.27,0.00021917,2]
[372530898,1752673855118,-460.0,0.00021917,2]
[372530899,1752673855127,-460.0,0.00021917,2]
[372530900,1752673855138,-716.13,0.00021917,2]
[372530901,1752673855148,-6122.9,0.00021917,2]
[372530902,1752673855157,-1793.88,0.00021917,2]
[372530903,1752673855167,-6543.89,0.00021917,2]
[372530905,1752673855268,-460.0,0.00021917,2]
[372530907,1752673855278,-500.0,0.00021917,2]
[372530909,1752673855288,-500.0,0.00021917,2]
[372530911,1752673855297,-2662.1,0.00021917,2]
[372530913,1752673855306,-500.0,0.00021917,2]
[372530915,1752673855315,-591.39,0.00021917,2]
[372530917,1752673855324,-151.0,0.00021917,2]
[372530918,1752673855334,-500.0,0.00021917,2]
[372530920,1752673855344,-460.0,0.00021917,2]
[372530922,1752673855354,-500.0,0.00021917,2]
[372530924,1752673855363,-460.0,0.00021917,2]
[372530926,1752673855373,-151.0,0.00021917,2]
[372530928,1752673855383,-500.0,0.00021917,2]
[372530930,1752673855393,-182.834226,0.00021917,2]
[372530932,1752673855403,-361.84170685,0.00021917,2]
[372530934,1752673855413,-752.4,0.00021917,2]
[372530936,1752673855423,-460.0,0.00021917,2]
[372530938,1752673855432,-1137.91,0.00021917,2]
[372530940,1752673855442,-460.0,0.00021917,2]
[372530942,1752673855450,-460.0,0.00021917,2]
[372530944,1752673855459,-465.52313508,0.00021917,2]
[372530945,1752673855471,-1487.45,0.00021917,2]
[372530946,1752673855480,-9411.83,0.00021917,2]
[372530947,1752673855489,-336.895774,0.00021917,2]
[372530948,1752673855499,-466.12448087,0.00021917,2]
[372530949,1752673855509,-460.0,0.00021917,2]
[372530950,1752673855518,-336.895774,0.00021917,2]
[372530951,1752673855527,-336.895774,0.00021917,2]
[372530952,1752673855537,-461.42462784,0.00021917,2]
[372530953,1752673855546,-336.895774,0.00021917,2]
[372530954,1752673855556,-2829.33,0.00021917,2]
[372530955,1752673855565,-336.895774,0.00021917,2]
[372530956,1752673855574,-336.895774,0.00021917,2]
[372530957,1752673855584,-336.895774,0.00021917,2]
[372530958,1752673855593,-703.06,0.00021917,2]
[372530960,1752673855603,-336.895774,0.00021917,2]
[372530962,1752673855612,-18735.64,0.00021917,2]
[372530964,1752673855622,-460.0,0.00021917,2]
[372530966,1752673855635,-336.895774,0.00021917,2]
[372530968,1752673855645,-336.895774,0.00021917,2]
[372530970,1752673855655,-1930.19,0.00021917,2]
[372530972,1752673855664,-644.68,0.00021917,2]
[372530974,1752673855675,-628.04,0.00021917,2]
[372530976,1752673855684,-1305.54,0.00021917,2]
[372530978,1752673855694,-571.43,0.00021917,2]
[372530980,1752673855705,-336.895774,0.00021917,2]
[372530982,1752673855714,-336.895774,0.00021917,2]
[372530984,1752673855724,-336.895774,0.00021917,2]
[372530986,1752673855733,-453.98541708,0.00021917,2]
[372530987,1752673855742,-336.895774,0.00021917,2]
[372530989,1752673855752,-151.0,0.00021917,2]
[372530992,1752673855762,-336.895774,0.00021917,2]
[372530994,1752673855771,-336.895774,0.00021917,2]
[372530996,1752673855781,-336.895774,0.00021917,2]
[372530997,1752673855791,-907.57,0.00021917,2]
[372530999,1752673855801,-2259.08,0.00021917,2]
[372531001,1752673855811,-336.895774,0.00021917,2]
[372531004,1752673855820,-1534.84,0.00021917,2]
[372531005,1752673855830,-460.0,0.00021917,2]
[372531007,1752673855839,-1570.3,0.00021917,2]
[372531010,1752673855850,-460.0,0.00021917,2]
[372531011,1752673855860,-858.13,0.00021917,2]
[372531014,1752673855869,-672.31,0.00021917,2]
[372531015,1752673855880,-460.0,0.00021917,2]
[372531017,1752673855891,-460.0,0.00021917,2]
[372531020,1752673855901,-1434.52,0.00021917,2]
[372531022,1752673855911,-460.0,0.00021917,2]
[372531024,1752673855920,-151.0,0.00021917,2]
[372531026,1752673855931,-849.12,0.00021917,2]
[372531027,1752673855940,-1422.98,0.00021917,2]
[372531030,1752673855951,-2005.64,0.00021917,2]
[372531031,1752673855961,-1056.04,0.00021917,2]
[372531033,1752673855972,-460.0,0.00021917,2]
[372531035,1752673855982,-1249.33,0.00021917,2]
[372531038,1752673855991,-3560.63,0.00021917,2]
[372531040,1752673856002,-1294.01,0.00021917,2]
[372531041,1752673856012,-460.0,0.00021917,2]
[372531044,1752673856021,-787.22,0.00021917,2]
[372531045,1752673856031,-554.15,0.00021917,2]
[372531048,1752673856040,-460.0,0.00021917,2]
[372531049,1752673856050,-460.0,0.00021917,2]
[372531051,1752673856059,-1772.87,0.00021917,2]
[372531053,1752673856068,-461.68048605,0.00021917,2]
[372531054,1752673856077,-460.0,0.00021917,2]
[372531055,1752673856087,-3861.06,0.00021917,2]
[372531056,1752673856095,-8076.09,0.00021917,2]
[372531057,1752673856104,-2392.2,0.00021917,2]
[372531058,1752673856114,-460.0,0.00021917,2]
[372531059,1752673856123,-460.0,0.00021917,2]
[372531060,1752673856132,-843.71,0.00021917,2]
[372531061,1752673856143,-460.0,0.00021917,2]
[372531062,1752673856154,-460.0,0.00021917,2]
[372531063,1752673856163,-2983.25,0.00021917,2]
[372531064,1752673856173,-460.0,0.00021917,2]
[372531065,1752673856183,-2283.57,0.00021917,2]
[372531066,1752673856193,-461.27931061,0.00021917,2]
[372531067,1752673856202,-460.0,0.00021917,2]
[372531068,1752673856212,-2017.94,0.00021917,2]
[372531069,1752673856222,-460.0,0.00021917,2]
[372531070,1752673856231,-460.0,0.00021917,2]
[372531071,1752673856241,-460.0,0.00021917,2]
[372531072,1752673856250,-160.86066,0.00021917,2]
[372531073,1752673856259,-1351.33,0.00021917,2]
[372531074,1752673856269,-160.86066,0.00021917,2]
[372531075,1752673856278,-1351.33,0.00021917,2]
[372531076,1752673856287,-160.86066,0.00021917,2]
[372531077,1752673856297,-460.0,0.00021917,2]
[372531078,1752673856306,-6362.63,0.00021917,2]
[372531079,1752673856316,-1351.33,0.00021917,2]
[372531080,1752673856326,-160.86066,0.00021917,2]
[372531081,1752673856335,-1351.33,0.00021917,2]
[372531082,1752673856345,-1318.21,0.00021917,2]
[372531083,1752673856355,-1351.33,0.00021917,2]
[372531084,1752673856364,-160.86066,0.00021917,2]
[372531085,1752673856374,-1351.33,0.00021917,2]
[372531086,1752673856384,-460.0,0.00021917,2]
[372531087,1752673856395,-1351.33,0.00021917,2]
[372531088,1752673856404,-160.86066,0.00021917,2]
[372531089,1752673856414,-1351.33,0.00021917,2]
[372531090,1752673856423,-460.0,0.00021917,2]
[372531091,1752673856433,-643.01,0.00021917,2]
[372531092,1752673856442,-160.86066,0.00021917,2]
[372531093,1752673856452,-460.0,0.00021917,2]
[372531094,1752673856462,-460.0,0.00021917,2]
[372531095,1752673856471,-460.0,0.00021917,2]
[372531096,1752673856481,-160.86066,0.00021917,2]
[372531097,1752673856490,-573.79,0.00021917,2]
[372531098,1752673856500,-460.0,0.00021917,2]
[372531099,1752673856510,-160.86066,0.00021917,2]
[372531100,1752673856519,-460.0,0.00021917,2]
[372531101,1752673856529,-9971.32,0.00021917,2]
[372531102,1752673856539,-160.86066,0.00021917,2]
[372531103,1752673856548,-160.86066,0.00021917,2]
[372531104,1752673856558,-460.0,0.00021917,2]
[372531105,1752673856567,-160.86066,0.00021917,2]
[372531106,1752673856577,-460.0,0.00021917,2]
[372531107,1752673856587,-160.86066,0.00021917,2]
[372531108,1752673856597,-160.86066,0.00021917,2]
[372531109,1752673856607,-1109.75,0.00021917,2]
[372531110,1752673856616,-7316.15,0.00021917,2]
[372531111,1752673856627,-1551.2,0.00021917,2]
[372531112,1752673856643,-460.0,0.00021917,2]
[372531113,1752673856653,-160.86066,0.00021917,2]
[372531114,1752673856663,-2935.54,0.00021917,2]
[372531115,1752673856673,-1695.57,0.00021917,2]
[372531116,1752673856683,-631.99,0.00021917,2]
[372531117,1752673856692,-160.86066,0.00021917,2]
[372531118,1752673856702,-460.0,0.00021917,2]
[372531119,1752673856715,-460.0,0.00021917,2]
[372531120,1752673856724,-460.0,0.00021917,2]
[372531121,1752673856734,-460.0,0.00021917,2]
[372531122,1752673856743,-160.86066,0.00021917,2]
[372531123,1752673856752,-160.86066,0.00021917,2]
[372531124,1752673856762,-1047.97,0.00021917,2]
[372531125,1752673856772,-1013.1,0.00021917,2]
[372531126,1752673856781,-800.18,0.00021917,2]
[372531127,1752673856790,-460.0,0.00021917,2]
[372531128,1752673856801,-565.5935928,0.00021917,2]
[372531129,1752673856811,-1938.23,0.00021917,2]
[372531130,1752673856820,-462.03841847,0.00021917,2]
[372531131,1752673856829,-518.5,0.00021917,2]
[372531132,1752673856839,-460.0,0.00021917,2]
[372531133,1752673856848,-152.772097,0.00021917,2]
[372531134,1752673856858,-728.69,0.00021917,2]
[372531135,1752673856867,-462.44747417,0.00021917,2]
[372531136,1752673856877,-571.27,0.00021917,2]
[372531137,1752673856886,-460.0,0.00021917,2]
[372531138,1752673856896,-1029.87,0.00021917,2]
[372531139,1752673856905,-460.0,0.00021917,2]
[372531140,1752673856914,-1200.74,0.00021917,2]
[372531141,1752673856924,-460.0,0.00021917,2]
[372531142,1752673856933,-460.0,0.00021917,2]
[372531143,1752673856943,-460.0,0.00021917,2]
[372531144,1752673856952,-460.0,0.00021917,2]
[372531145,1752673856962,-3283.55,0.00021917,2]
[372531146,1752673856972,-2686.55,0.00021917,2]
[372531147,1752673856982,-1826.93,0.00021917,2]
[372531148,1752673856993,-786.87,0.00021917,2]
[372531149,1752673857002,-460.0,0.00021917,2]
[372531150,1752673857012,-2594.87,0.00021917,2]
[372531151,1752673857021,-2619.98,0.00021917,2]
[372531152,1752673857031,-2085.39,0.00021917,2]
[372531153,1752673857040,-6326.27,0.00021917,2]
[372531154,1752673857050,-842.64,0.00021917,2]
[372531155,1752673857061,-690.19,0.00021917,2]
[372531156,1752673857070,-460.0,0.00021917,2]
[372531157,1752673857081,-1158.64,0.00021917,2]
[372531158,1752673857090,-151.0,0.00021917,2]
[372531159,1752673857100,-460.0,0.00021917,2]
[372531160,1752673857109,-720.64,0.00021917,2]
[372531161,1752673857119,-151.0,0.00021917,2]
[372531162,1752673857128,-151.0,0.00021917,2]
[372531163,1752673857138,-460.0,0.00021917,2]
[372531164,1752673857148,-151.0,0.00021917,2]
[372531165,1752673857157,-460.0,0.00021917,2]
[372531166,1752673857167,-460.0,0.00021917,2]
[372531167,1752673857176,-460.0,0.00021917,2]
[372531168,1752673857185,-151.0,0.00021917,2]
[372531169,1752673857195,-151.0,0.00021917,2]
[372531170,1752673857204,-151.0,0.00021917,2]
[372531171,1752673857214,-460.0,0.00021917,2]
[372531172,1752673857223,-151.0,0.00021917,2]
[372531173,1752673857232,-220.759544,0.00021917,2]
[372531174,1752673857245,-796.27,0.00021917,2]
[372531175,1752673857255,-2352.27,0.00021917,2]
[372531176,1752673857264,-151.0,0.00021917,2]
[372531177,1752673857274,-460.0,0.00021917,2]
[372531178,1752673857283,-3067.69,0.00021917,2]
[372531179,1752673857293,-151.0,0.00021917,2]
[372531180,1752673857303,-259.516956,0.00021917,2]
[372531181,1752673857312,-460.0,0.00021917,2]
[372531182,1752673857322,-1765.98,0.00021917,2]
[372531183,1752673857331,-502.47064519,0.00021917,2]
[372531184,1752673857341,-460.0,0.00021917,2]
[372531185,1752673857351,-460.0,0.00021917,2]
[372531186,1752673857360,-1409.07,0.00021917,2]
[372531187,1752673857370,-4609.35,0.00021917,2]
[372531188,1752673857380,-2573.19,0.00021917,2]
[372531189,1752673857389,-783.0,0.00021917,2]
[372531190,1752673857399,-460.0,0.00021917,2]
[372531191,1752673857409,-938.18,0.00021917,2]
[372531192,1752673857422,-2441.11,0.00021917,2]
[372531193,1752673857431,-1399.15,0.00021917,2]
[372531194,1752673857440,-460.0,0.00021917,2]
[372531195,1752673857450,-460.0,0.00021917,2]
[372531196,1752673857459,-460.0,0.00021917,2]
[372531197,1752673857468,-460.0,0.00021917,2]
[372531198,1752673857477,-460.0,0.00021917,2]
[372531199,1752673857486,-460.0,0.00021917,2]
[372531200,1752673857496,-5066.09,0.00021917,2]
[372531201,1752673857506,-460.0,0.00021917,2]
[372531202,1752673857516,-2376.47,0.00021917,2]
[372531203,1752673857526,-460.0,0.00021917,2]
[372531204,1752673857535,-1583.1,0.00021917,2]
[372531205,1752673857544,-460.0,0.00021917,2]
[372531206,1752673857552,-460.0,0.00021917,2]
[372531207,1752673857562,-460.0,0.00021917,2]
[372531208,1752673857572,-2945.78,0.00021917,2]
[372531209,1752673857581,-460.0,0.00021917,2]
[372531210,1752673857591,-460.0,0.00021917,2]
[372531211,1752673857600,-460.0,0.00021917,2]
[372531212,1752673857609,-2370.36,0.00021917,2]
[372531213,1752673857618,-627.68,0.00021917,2]
[372531214,1752673857628,-1477.32,0.00021917,2]
[372531215,1752673857640,-572.35,0.00021917,2]
[372531216,1752673857649,-510.54,0.00021917,2]
[372531217,1752673857659,-602.06,0.00021917,2]
[372531218,1752673857669,-460.0,0.00021917,2]
[372531219,1752673857678,-460.0,0.00021917,2]
[372531220,1752673857688,-2821.92,0.00021917,2]
[372531221,1752673857698,-750.64,0.00021917,2]
[372531222,1752673857710,-460.0,0.00021917,2]
[372531223,1752673857721,-151.0,0.00021917,2]
[372531224,1752673857731,-460.0,0.00021917,2]
[372531225,1752673857739,-151.0,0.00021917,2]
[372531226,1752673857749,-1801.53,0.00021917,2]
[372531227,1752673857758,-151.0,0.00021917,2]
[372531228,1752673857768,-151.0,0.00021917,2]
[372531229,1752673857777,-2866.26,0.00021917,2]
[372531230,1752673857787,-151.0,0.00021917,2]
[372531231,1752673857796,-1928.84,0.00021917,2]
[372531232,1752673857806,-151.0,0.00021917,2]
[372531233,1752673857815,-151.0,0.00021917,2]
[372531234,1752673857825,-460.0,0.00021917,2]
[372531235,1752673857835,-151.0,0.00021917,2]
[372531236,1752673857844,-460.0,0.00021917,2]
[372531237,1752673857854,-151.0,0.00021917,2]
[372531238,1752673857863,-151.0,0.00021917,2]
[372531239,1752673857873,-1412.74,0.00021917,2]
[372531240,1752673857883,-479.56,0.00021917,2]
[372531241,1752673857894,-275.41888,0.00021917,2]
[372531242,1752673857904,-501.41538732,0.00021917,2]
[372531243,1752673857915,-460.0,0.00021917,2]
[372531244,1752673857926,-460.0,0.00021917,2]
[372531245,1752673857936,-6102.89,0.00021917,2]
[372531246,1752673857945,-462.34735879,0.00021917,2]
[372531247,1752673857955,-2965.14,0.00021917,2]
[372531248,1752673857964,-460.0,0.00021917,2]
[372531249,1752673857973,-1212.72,0.00021917,2]
[372531250,1752673857983,-690.3,0.00021917,2]
[372531251,1752673857992,-460.0,0.00021917,2]
[372531252,1752673858002,-2126.55,0.00021917,2]
[372531253,1752673858012,-460.0,0.00021917,2]
[372531254,1752673858021,-460.0,0.00021917,2]
[372531255,1752673858030,-1213.09,0.00021917,2]
[372531256,1752673858040,-1187.42,0.00021917,2]
[372531257,1752673858049,-460.0,0.00021917,2]
[372531258,1752673858058,-460.0,0.00021917,2]
[372531259,1752673858067,-460.0,0.00021917,2]
[372531260,1752673858076,-679.36,0.00021917,2]
[372531261,1752673858088,-2571.76,0.00021917,2]
[372531262,1752673858105,-460.0,0.00021917,2]
[372531263,1752673858115,-460.0,0.00021917,2]
[372531264,1752673858124,-1560.36,0.00021917,2]
[372531265,1752673858133,-2557.51,0.00021917,2]
[372531266,1752673858144,-3873.51,0.00021917,2]
[372531267,1752673858153,-602.84236023,0.00021917,2]
[372531268,1752673858163,-1214.2,0.00021917,2]
[372531269,1752673858172,-460.0,0.00021917,2]
[372531270,1752673858182,-759.24,0.00021917,2]
[372531271,1752673858191,-5698.65,0.00021917,2]
[372531272,1752673858201,-460.0,0.00021917,2]
[372531273,1752673858211,-460.0,0.00021917,2]
[372531274,1752673858220,-460.0,0.00021917,2]
[372531275,1752673858229,-3506.32,0.00021917,2]
[372531276,1752673858239,-460.0,0.00021917,2]
[372531277,1752673858248,-3658.67,0.00021917,2]
[372531278,1752673858258,-489.99,0.00021917,2]
[372531279,1752673858272,-460.0,0.00021917,2]
[372531280,1752673858281,-460.0,0.00021917,2]
[372531281,1752673858291,-460.0,0.00021917,2]
[372531282,1752673858300,-460.0,0.00021917,2]
[372531283,1752673858310,-1228.24,0.00021917,2]
[372531284,1752673858320,-460.0,0.00021917,2]
[372531285,1752673858330,-460.0,0.00021917,2]
[372531286,1752673858339,-460.0,0.00021917,2]
[372531287,1752673858349,-2182.34,0.00021917,2]
[372531288,1752673858359,-460.0,0.00021917,2]
[372531289,1752673858369,-1806.09,0.00021917,2]
[372531290,1752673858379,-978.56,0.00021917,2]
[372531291,1752673858389,-460.0,0.00021917,2]
[372531292,1752673858399,-2533.66,0.00021917,2]
[372531293,1752673858409,-460.0,0.00021917,2]
[372531294,1752673858418,-151.0,0.00021917,2]
[372531295,1752673858428,-151.0,0.00021917,2]
[372531296,1752673858438,-945.17,0.00021917,2]
[372531297,1752673858447,-2904.67,0.00021917,2]
[372531298,1752673858457,-727.29,0.00021917,2]
[372531299,1752673858467,-151.0,0.00021917,2]
[372531300,1752673858477,-151.0,0.00021917,2]
[372531301,1752673858486,-769.18,0.00021917,2]
[372531302,1752673858496,-2061.18,0.00021917,2]
[372531303,1752673858506,-789.04,0.00021917,2]
[372531304,1752673858515,-460.0,0.00021917,2]
[372531305,1752673858525,-9549.25,0.00021917,2]
[372531306,1752673858535,-151.0,0.00021917,2]
[372531307,1752673858545,-460.0,0.00021917,2]
[372531308,1752673858554,-460.0,0.00021917,2]
[372531309,1752673858564,-151.0,0.00021917,2]
[372531310,1752673858574,-1579.07,0.00021917,2]
[372531311,1752673858583,-460.0,0.00021917,2]
[372531312,1752673858593,-13415.29,0.00021917,2]
[372531313,1752673858602,-151.0,0.00021917,2]
[372531314,1752673858611,-460.0,0.00021917,2]
[372531315,1752673858621,-151.0,0.00021917,2]
[372531316,1752673858633,-581.48829954,0.00021917,2]
[372531317,1752673858643,-239.887276,0.00021917,2]
[372531318,1752673858652,-460.0,0.00021917,2]
[372531319,1752673858661,-460.0,0.00021917,2]
[372531320,1752673858671,-460.0,0.00021917,2]
[372531321,1752673858680,-460.0,0.00021917,2]
[372531322,1752673858689,-460.44132861,0.00021917,2]
[372531323,1752673858699,-460.0,0.00021917,2]
[372531324,1752673858711,-460.0,0.00021917,2]
[372531325,1752673858721,-660.42,0.00021917,2]
[372531326,1752673858731,-572.43,0.00021917,2]
[372531327,1752673858741,-24833.37,0.00021917,2]
[372531328,1752673858750,-985.29,0.00021917,2]
[372531329,1752673858760,-10385.81,0.00021917,2]
[372531330,1752673858770,-51107.29,0.00021917,2]
[372531331,1752673858779,-4645.84,0.00021917,2]
[372531332,1752673858789,-460.20085256,0.00021917,2]
[372531333,1752673858800,-1750.61,0.00021917,2]
[372531334,1752673858809,-508.68293681,0.00021917,2]
[372531335,1752673858819,-460.0,0.00021917,2]
[372531336,1752673858829,-4354.3,0.00021917,2]
[372531337,1752673858839,-460.0,0.00021917,2]
[372531338,1752673858849,-460.0,0.00021917,2]
[372531339,1752673858860,-460.0,0.00021917,2]
[372531340,1752673858869,-460.0,0.00021917,2]
[372531341,1752673858878,-150.923723,0.00021917,2]
[372531342,1752673858889,-460.0,0.00021917,2]
[372531343,1752673858898,-500.0,0.00021917,2]
[372531344,1752673858908,-500.0,0.00021917,2]
[372531345,1752673858918,-500.0,0.00021917,2]
[372531346,1752673858938,-500.0,0.00021917,2]
[372531347,1752673858948,-460.0,0.00021917,2]
[372531348,1752673858958,-518.95,0.00021917,2]
[372531349,1752673858968,-500.0,0.00021917,2]
[372531350,1752673858977,-500.0,0.00021917,2]
[372531351,1752673858987,-460.0,0.00021917,2]
[372531352,1752673858997,-460.0,0.00021917,2]
[372531353,1752673859007,-500.0,0.00021917,2]
[372531354,1752673859017,-500.0,0.00021917,2]
[372531355,1752673859026,-500.0,0.00021917,2]
[372531356,1752673859036,-500.0,0.00021917,2]
[372531357,1752673859046,-534.33,0.00021917,2]
[372531358,1752673859056,-500.0,0.00021917,2]
[372531359,1752673859066,-201.96,0.00021917,2]
[372531360,1752673859076,-500.0,0.00021917,2]
[372531361,1752673859085,-500.0,0.00021917,2]
[372531362,1752673859095,-1312.65,0.00021917,2]
[372531363,1752673859104,-500.0,0.00021917,2]
[372531364,1752673859116,-2655.82,0.00021917,2]
[372531365,1752673859126,-514.19297647,0.00021917,2]
[372531366,1752673859135,-5107.1,0.00021917,2]
[372531367,1752673859145,-460.0,0.00021917,2]
[372531368,1752673859154,-460.0,0.00021917,2]
[372531369,1752673859164,-3996.17,0.00021917,2]
[372531370,1752673859178,-1000.0,0.00021918,3]
[372531371,1752673859188,-1000.0,0.00021918,3]
[372531372,1752673859197,-1000.0,0.00021918,3]
[372531373,1752673859207,-1000.0,0.00021918,3]
[372531374,1752673859217,-1000.0,0.00021918,3]
[372531375,1752673859227,-1000.0,0.00021918,3]
[372531376,1752673859236,-1000.0,0.00021918,3]
[372531377,1752673859246,-1000.0,0.00021918,3]
[372531378,1752673859256,-1000.0,0.00021918,3]
[372531379,1752673859266,-1000.0,0.00021918,3]
[372531380,1752673859276,-1000.0,0.00021918,3]
[372531381,1752673859286,-1000.0,0.00021918,3]
[372531382,1752673859296,-1000.0,0.00021918,3]
[372531384,1752673859306,-1000.0,0.00021918,3]
[372531386,1752673859316,-1000.0,0.00021918,3]
[372531388,1752673859326,-1000.0,0.00021918,3]
[372531390,1752673859336,-1000.0,0.00021918,3]
[372531392,1752673859346,-1000.0,0.00021918,3]
[372531394,1752673859355,-1000.0,0.00021918,3]
[372531396,1752673859365,-1000.0,0.00021918,3]
[372531398,1752673859375,-1000.0,0.00021918,3]
[372531400,1752673859384,-1000.0,0.00021918,3]
[372531402,1752673859395,-1000.0,0.00021918,3]
[372531404,1752673859405,-1000.0,0.00021918,3]
[372531406,1752673859415,-1000.0,0.00021918,3]
[372531408,1752673859425,-1000.0,0.00021918,3]
[372531410,1752673859435,-1000.0,0.00021918,3]
[372531412,1752673859449,-1000.0,0.00021918,3]
[372531424,1752673859678,-1000.0,0.00021918,3]
[372531425,1752673859735,-1000.0,0.00021918,3]
[372531426,1752673859746,-1000.0,0.00021918,3]
[372531427,1752673859755,-1000.0,0.00021918,3]
[372531428,1752673859765,-1000.0,0.00021918,3]
[372531429,1752673859774,-1000.0,0.00021918,3]
[372531430,1752673859784,-1000.0,0.00021918,3]
[372531431,1752673859795,-1000.0,0.00021918,3]
[372531432,1752673859805,-1000.0,0.00021918,3]
[372531433,1752673859815,-1000.0,0.00021918,3]
[372531434,1752673859825,-1000.0,0.00021918,3]
[372531435,1752673859835,-1000.0,0.00021918,3]
[372531436,1752673859844,-1000.0,0.00021918,3]
[372531437,1752673859854,-1000.0,0.00021918,3]
[372531438,1752673859866,-1000.0,0.00021918,3]
[372531439,1752673859876,-1000.0,0.00021918,3]
[372531440,1752673859887,-1000.0,0.00021918,3]
[372531441,1752673859898,-1000.0,0.00021918,3]
[372531442,1752673859907,-1000.0,0.00021918,3]
[372531443,1752673859917,-1000.0,0.00021918,3]
[372531444,1752673859926,-1000.0,0.00021918,3]
[372531445,1752673859936,-1000.0,0.00021918,3]
[372531446,1752673859946,-1000.0,0.00021918,3]
[372531447,1752673859956,-1000.0,0.00021918,3]
[372531448,1752673859966,-1000.0,0.00021918,3]
[372531449,1752673859976,-1000.0,0.00021918,3]
[372531450,1752673859986,-1000.0,0.00021918,3]
[372531451,1752673859999,-1000.0,0.00021918,3]
[372531452,1752673860009,-1000.0,0.00021918,3]
[372531453,1752673860020,-1000.0,0.00021918,3]
[372531454,1752673860030,-736.0,0.00021918,3]
[372531455,1752673860040,-5000.0,0.00021918,2]
[372531456,1752673860050,-153.0,0.00021918,2]
[372531457,1752673860061,-153.0,0.00021918,2]
[372531458,1752673860071,-153.0,0.00021918,2]
[372531459,1752673860081,-838.7287696,0.00021918,3]
[372531460,1752673860091,-476.61752775,0.00021918,3]
[372531461,1752673860101,-276.23952194,0.00021918,2]
[372531462,1752673860111,-150.0,0.00021918,2]
[372531463,1752673860121,-153.87333875,0.00021918,2]
[372531464,1752673860131,-153.0,0.00021918,2]
[372531465,1752673860140,-200.0,0.00021918,2]
[372531466,1752673860150,-151.0,0.00021918,7]
[372531467,1752673860160,-151.0,0.00021918,7]
[372531468,1752673860170,-151.0,0.00021918,7]
[372531469,1752673860179,-151.0,0.00021918,7]
[372531470,1752673860189,-306.762997,0.00021918,7]
[372531471,1752673860200,-306.762997,0.00021918,7]
[372531472,1752673860211,-154.56974,0.00021918,7]
[372531473,1752673860221,-154.56974,0.00021918,7]
[372531474,1752673860232,-280.351422,0.00021918,7]
[372531475,1752673860242,-280.351422,0.00021918,7]
[372531476,1752673860252,-384.376214,0.00021918,7]
[372531477,1752673860262,-384.376214,0.00021918,7]
[372531478,1752673860272,-151.0,0.00021918,7]
[372531479,1752673860282,-151.0,0.00021918,7]